fUSD/lending_fUSD_20260510
["ID","MTS","AMOUNT","RATE_DAILY","PERIOD"]
[421962538,1778375233000,4657.34093856,9.8e-05,2]
[421962534,1778375233000,4657.34093856,9.8e-05,2]
[421962535,1778375233000,4657.34093856,9.8e-05,2]
[421962536,1778375233000,4657.34093856,9.8e-05,2]
[421962532,1778375233000,1949.64708414,9.8e-05,2]
[421962533,1778375233000,4657.34093856,9.8e-05,2]
[421962540,1778375248000,-5381.62591975,9.8e-05,2]
[421962541,1778375282000,-155.89717278,9.592e-05,2]
[421962542,1778375285000,-153.01446323,9.592e-05,2]
[421962543,1778375296000,-157.78836399,9.592e-05,2]
[421962544,1778375297000,-23.02602154,9.592e-05,2]
[421962546,1778375360000,-298.64397846,9.592e-05,2]
[421962545,1778375360000,-1313.39,9.543e-05,2]
[421962547,1778375360000,-10671.21404901,9.8e-05,2]
[421962581,1778375432000,-500.0,9.899e-05,2]
[421962584,1778375432000,-32.71794039,9.899e-05,2]
[421962578,1778375432000,-500.0,9.899e-05,2]
[421962576,1778375432000,-500.0,9.899e-05,2]
[421962572,1778375432000,-500.0,9.899e-05,2]
[421962573,1778375432000,-500.0,9.899e-05,2]
[421962579,1778375432000,-500.0,9.899e-05,2]
[421962575,1778375432000,-500.0,9.899e-05,2]
[421962574,1778375432000,-500.0,9.899e-05,2]
[421962577,1778375432000,-500.0,9.899e-05,2]
[421962583,1778375432000,-467.28205961,9.899e-05,2]
[421962571,1778375432000,-500.0,9.899e-05,2]
[421962569,1778375432000,-1000.0,9.899e-05,2]
[421962570,1778375432000,-500.0,9.899e-05,2]
[421962568,1778375432000,-300.0,9.898e-05,2]
[421962566,1778375432000,-418.0,9.835e-05,2]
[421962564,1778375432000,-418.0,9.74e-05,2]
[421962563,1778375432000,-418.0,9.644e-05,2]
[421962565,1778375432000,-680.52747718,9.8e-05,2]
[421962567,1778375432000,-150.0,9.898e-05,2]
[421962580,1778375432000,-500.0,9.899e-05,2]
[421962582,1778375432000,-500.0,9.899e-05,2]
[421962599,1778375432000,-180.81438553,9.899e-05,2]
[421962590,1778375432000,-445.56199586,9.899e-05,2]
[421962586,1778375432000,-500.0,9.899e-05,2]
[421962610,1778375432000,-1009.52478158,9.9e-05,2]
[421962609,1778375432000,-5529.0,9.9e-05,2]
[421962607,1778375432000,-464.29087844,9.9e-05,2]
[421962605,1778375432000,-250.0,9.9e-05,2]
[421962601,1778375432000,-235.42987416,9.899e-05,2]
[421962598,1778375432000,-308.91163601,9.899e-05,2]
[421962603,1778375432000,-456.50251196,9.899e-05,2]
[421962604,1778375432000,-500.0,9.899e-05,2]
[421962595,1778375432000,-500.0,9.899e-05,2]
[421962606,1778375432000,-37302.86029038,9.9e-05,2]
[421962594,1778375432000,-500.0,9.899e-05,2]
[421962596,1778375432000,-237.78810217,9.899e-05,2]
[421962593,1778375432000,-320.41563003,9.899e-05,2]
[421962591,1778375432000,-500.0,9.899e-05,2]
[421962592,1778375432000,-500.0,9.899e-05,2]
[421962589,1778375432000,-500.0,9.899e-05,2]
[421962585,1778375432000,-500.0,9.899e-05,2]
[421962588,1778375432000,-194.95398102,9.899e-05,2]
[421962587,1778375432000,-317.98229433,9.899e-05,2]
[421962597,1778375432000,-467.65466279,9.899e-05,2]
[421962630,1778375438000,-423.73688747,9.9e-05,2]
[421962624,1778375438000,-1386.34858037,9.9e-05,2]
[421962625,1778375438000,-27136.26855178,9.9e-05,2]
[421962626,1778375438000,-380.52932165,9.9e-05,2]
[421962627,1778375438000,-2269.26581371,9.9e-05,2]
[421962628,1778375438000,-676.45753457,9.9e-05,2]
[421962631,1778375438000,-1404.00028827,9.9e-05,2]
[421962632,1778375438000,-30089.42606941,9.9e-05,2]
[421962634,1778375438000,-547.40929043,9.9e-05,2]
[421962636,1778375438000,-374.68915625,9.9e-05,2]
[421962633,1778375438000,-2000.0,9.9e-05,2]
[421962635,1778375438000,-351.83301108,9.9e-05,2]
[421962629,1778375438000,-1319.84395547,9.9e-05,2]
[421962637,1778375438000,-2527.28622367,9.9e-05,2]
[421962675,1778375441000,-418.0,0.00010504,2]
[421962700,1778375441000,-456.80933954,0.00010626,2]
[421962685,1778375441000,-500.0,0.00010626,2]
[421962683,1778375441000,-500.0,0.00010626,2]
[421962681,1778375441000,-500.0,0.00010626,2]
[421962686,1778375441000,-500.0,0.00010626,2]
[421962692,1778375441000,-500.0,0.00010626,2]
[421962688,1778375441000,-500.0,0.00010626,2]
[421962677,1778375441000,-1000.0,0.00010521,2]
[421962679,1778375441000,-500.0,0.00010626,2]
[421962696,1778375441000,-500.0,0.00010626,2]
[421962712,1778375441000,-500.0,0.00010626,2]
[421962690,1778375441000,-500.0,0.00010626,2]
[421962698,1778375441000,-500.0,0.00010626,2]
[421962704,1778375441000,-500.0,0.00010626,2]
[421962706,1778375441000,-500.0,0.00010626,2]
[421962708,1778375441000,-500.0,0.00010626,2]
[421962710,1778375441000,-500.0,0.00010626,2]
[421962714,1778375441000,-500.0,0.00010626,2]
[421962702,1778375441000,-500.0,0.00010626,2]
[421962716,1778375441000,-500.0,0.00010626,2]
[421962720,1778375441000,-500.0,0.00010626,2]
[421962694,1778375441000,-500.0,0.00010626,2]
[421962673,1778375441000,-418.0,0.00010408,2]
[421962645,1778375441000,-2245816.09713571,0.0001,2]
[421962669,1778375441000,-2758.99,0.00010286,2]
[421962718,1778375441000,-297.77652657,0.00010626,2]
[421962638,1778375441000,-588660.17723654,9.9e-05,2]
[421962640,1778375441000,-160.77743921,9.95e-05,2]
[421962641,1778375441000,-500.0,9.973e-05,2]
[421962639,1778375441000,-418.0,9.931e-05,2]
[421962644,1778375441000,-500.0,9.973e-05,2]
[421962642,1778375441000,-500.0,9.973e-05,2]
[421962643,1778375441000,-601.61878338,9.973e-05,2]
[421962646,1778375441000,-1207.76532497,0.0001,2]
[421962647,1778375441000,-263.50783151,0.0001,2]
[421962651,1778375441000,-188.81407806,0.0001,2]
[421962650,1778375441000,-188.81407806,0.0001,2]
[421962649,1778375441000,-188.81407806,0.0001,2]
[421962648,1778375441000,-180.5,0.0001,2]
[421962652,1778375441000,-597.06521701,0.0001,2]
[421962654,1778375441000,-1066.73007956,0.0001,2]
[421962656,1778375441000,-206.89244229,0.0001,2]
[421962662,1778375441000,-156.41,0.00010087,2]
[421962658,1778375441000,-442.39252064,0.0001,2]
[421962660,1778375441000,-418.0,0.00010026,2]
[421962664,1778375441000,-418.0,0.00010122,2]
[421962666,1778375441000,-418.0,0.00010217,2]
[421962668,1778375441000,-3901.44223888,0.00010232,2]
[421962671,1778375441000,-418.0,0.00010313,2]
[421962722,1778375441000,-500.0,0.00010626,2]
[421962772,1778375441000,-150.0,0.0001095,2]
[421962728,1778375441000,-500.0,0.00010626,2]
[421962770,1778375441000,-150.0,0.00010911,2]
[421962768,1778375441000,-2760.49708879,0.000109,2]
[421962771,1778375441000,-150.0,0.00010933,2]
[421962769,1778375441000,-500.0,0.000109,2]
[421962773,1778375441000,-150.0,0.00010956,2]
[421962774,1778375441000,-150.0,0.00010971,2]
[421962791,1778375441000,-3292.10385336,0.00011099,2]
[421962775,1778375441000,-150.0,0.00010978,2]
[421962776,1778375441000,-1893.93,0.00010985,2]
[421962778,1778375441000,-150.0,0.00011,2]
[421962777,1778375441000,-150.0,0.00010989,2]
[421962780,1778375441000,-150.0,0.00011025,2]
[421962783,1778375441000,-150.0,0.00011089,2]
[421962779,1778375441000,-150.0,0.00011022,2]
[421962782,1778375441000,-150.0,0.00011067,2]
[421962781,1778375441000,-150.0,0.00011044,2]
[421962784,1778375441000,-6602.18853051,0.00011099,2]
[421962786,1778375441000,-6602.18853043,0.00011099,2]
[421962788,1778375441000,-6602.18853043,0.00011099,2]
[421962787,1778375441000,-6602.18853043,0.00011099,2]
[421962790,1778375441000,-3292.10385341,0.00011099,2]
[421962789,1778375441000,-6602.18853043,0.00011099,2]
[421962724,1778375441000,-219.19126393,0.00010626,2]
[421962767,1778375441000,-250.0,0.00010889,2]
[421962766,1778375441000,-150.0,0.00010889,2]
[421962785,1778375441000,-6602.18853043,0.00011099,2]
[421962764,1778375441000,-250.0,0.00010888,2]
[421962765,1778375441000,-255.0,0.00010888,2]
[421962726,1778375441000,-500.0,0.00010626,2]
[421962740,1778375441000,-263.0987231,0.00010676,2]
[421962730,1778375441000,-199.9293781,0.00010626,2]
[421962731,1778375441000,-500.0,0.00010626,2]
[421962733,1778375441000,-422.1773609,0.00010641,2]
[421962735,1778375441000,-156.41,0.00010642,2]
[421962752,1778375441000,-150.0,0.000108,2]
[421962750,1778375441000,-150.0,0.000108,2]
[421962744,1778375441000,-271.04146023,0.000107,2]
[421962741,1778375441000,-1429.29301702,0.00010676,2]
[421962737,1778375441000,-13111.50051936,0.00010676,2]
[421962746,1778375441000,-320968.57737422,0.000107,2]
[421962748,1778375441000,-2758.99,0.00010776,2]
[421962761,1778375441000,-150.0,0.00010844,2]
[421962763,1778375441000,-150.0,0.00010875,2]
[421962762,1778375441000,-150.0,0.00010867,2]
[421962758,1778375441000,-500.0,0.00010801,2]
[421962760,1778375441000,-193.46,0.00010844,2]
[421962757,1778375441000,-150.0,0.000108,2]
[421962754,1778375441000,-150.0,0.000108,2]
[421962756,1778375441000,-150.0,0.000108,2]
[421962755,1778375441000,-150.0,0.000108,2]
[421962759,1778375441000,-150.0,0.00010822,2]
[421962810,1778375442000,-2758.99,0.00011266,2]
[421962811,1778375442000,-150.0,0.00011267,2]
[421962814,1778375442000,-150.0,0.00011314,2]
[421962818,1778375442000,-150.0,0.00011378,2]
[421962815,1778375442000,-150.0,0.00011325,2]
[421962820,1778375442000,-150.0,0.000114,2]
[421962816,1778375442000,-150.0,0.00011333,2]
[421962817,1778375442000,-150.0,0.00011356,2]
[421962825,1778375442000,-150.0,0.00011467,2]
[421962823,1778375442000,-3292.10385336,0.00011444,2]
[421962822,1778375442000,-150.0,0.00011422,2]
[421962821,1778375442000,-150.0,0.000114,2]
[421962826,1778375442000,-150.0,0.00011475,2]
[421962824,1778375442000,-150.0,0.00011444,2]
[421962812,1778375442000,-150.0,0.00011289,2]
[421962827,1778375442000,-150.0,0.00011478,2]
[421962819,1778375442000,-949.49407334,0.000114,2]
[421962813,1778375442000,-150.0,0.00011311,2]
[421962798,1778375442000,-150.0,0.00011133,2]
[421962809,1778375442000,-150.0,0.0001125,2]
[421962829,1778375442000,-150.0,0.00011489,2]
[421962792,1778375442000,-3292.10385336,0.00011099,2]
[421962794,1778375442000,-3292.10385336,0.00011099,2]
[421962793,1778375442000,-3292.10385336,0.00011099,2]
[421962796,1778375442000,-150.0,0.000111,2]
[421962795,1778375442000,-3292.10385336,0.00011099,2]
[421962797,1778375442000,-150.0,0.00011111,2]
[421962808,1778375442000,-150.0,0.00011244,2]
[421962800,1778375442000,-150.0,0.00011156,2]
[421962802,1778375442000,-150.0,0.00011175,2]
[421962801,1778375442000,-500.0,0.00011174,2]
[421962803,1778375442000,-150.0,0.00011178,2]
[421962804,1778375442000,-156.41,0.00011197,2]
[421962806,1778375442000,-3292.10385336,0.00011217,2]
[421962805,1778375442000,-150.0,0.000112,2]
[421962807,1778375442000,-150.0,0.00011222,2]
[421962799,1778375442000,-150.0,0.00011143,2]
[421962828,1778375442000,-150.0,0.00011486,2]
[421962832,1778375442000,-150.0,0.00011533,2]
[421962830,1778375442000,-11179.17,0.000115,2]
[421962852,1778375442000,-150.0,0.00011778,2]
[421962853,1778375442000,-150.0,0.000118,2]
[421962856,1778375442000,-150.0,0.00011844,2]
[421962855,1778375442000,-150.0,0.00011829,2]
[421962858,1778375442000,-150.0,0.00011867,2]
[421962857,1778375442000,-150.0,0.0001185,2]
[421962859,1778375442000,-150.0,0.00011889,2]
[421962860,1778375442000,-3292.10385336,0.000119,2]
[421962863,1778375442000,-150.0,0.00011933,2]
[421962862,1778375442000,-150.0,0.00011925,2]
[421962866,1778375442000,-150.0,0.00011978,2]
[421962865,1778375442000,-433.0,0.00011977,2]
[421962861,1778375442000,-150.0,0.00011911,2]
[421962864,1778375442000,-150.0,0.00011956,2]
[421962868,1778375442000,-999.21765633,0.00012,2]
[421962851,1778375442000,-150.0,0.00011775,2]
[421962849,1778375442000,-2758.99,0.00011755,2]
[421962850,1778375442000,-150.0,0.00011756,2]
[421962854,1778375442000,-150.0,0.00011822,2]
[421962831,1778375442000,-150.0,0.00011511,2]
[421962867,1778375442000,-1213726.933835,0.00012,2]
[421962835,1778375442000,-150.0,0.00011556,2]
[421962834,1778375442000,-200.0,0.00011552,2]
[421962837,1778375442000,-150.0,0.000116,2]
[421962839,1778375442000,-150.0,0.00011625,2]
[421962836,1778375442000,-150.0,0.00011578,2]
[421962847,1778375442000,-150.0,0.00011733,2]
[421962840,1778375442000,-150.0,0.00011644,2]
[421962841,1778375442000,-150.0,0.00011657,2]
[421962844,1778375442000,-150.0,0.00011689,2]
[421962842,1778375442000,-150.0,0.00011667,2]
[421962843,1778375442000,-3292.10385336,0.00011672,2]
[421962845,1778375442000,-150.0,0.000117,2]
[421962846,1778375442000,-150.0,0.00011711,2]
[421962848,1778375442000,-156.41,0.00011752,2]
[421962838,1778375442000,-150.0,0.00011622,2]
[421962833,1778375442000,-150.0,0.0001155,2]
[421962878,1778375443000,-500.0,0.00011722,2]
[421962877,1778375443000,-500.0,0.00011448,2]
[421962879,1778375443000,-32847.81146957,0.00012,2]
[421962876,1778375443000,-6602.18853043,0.0001121,2]
[421962882,1778375443000,-278.445514,0.00012,2]
[421962881,1778375443000,-41.93976213,0.00012,2]
[421962883,1778375443000,-426.5,0.00012,2]
[421962880,1778375443000,-22572.15576825,0.00012,2]
[421962893,1778375446000,-45862.76238138,0.00012,2]
[421962892,1778375446000,-1759.0,0.00012,2]
[421962891,1778375446000,-289.4375,0.00012,2]
[421962895,1778375447000,-2276.97830001,0.00012,2]
[421962894,1778375447000,-30812.49544849,0.00012,2]
[421962907,1778375828000,26584.858446,7.945e-05,2]
[421962908,1778375912000,-343.97417126,9.149e-05,2]
[421962909,1778375915000,-157.963873,9.149e-05,2]
[421962910,1778375924000,167.61970733,0.0001,30]
[421962911,1778376220000,185.58,8.785e-05,2]
[421962912,1778376240000,572.96,8.785e-05,2]
[421962914,1778376240000,90.66,8.785e-05,2]
[421962913,1778376240000,1074.59,8.785e-05,2]
[421962916,1778376305000,92.21,8.819e-05,2]
[421962915,1778376305000,147.5,8.819e-05,2]
[421962917,1778376334000,262.86132106,0.00012984,14]
[421962936,1778376338000,-500.0,9.699e-05,2]
[421962937,1778376338000,-500.0,9.699e-05,2]
[421962938,1778376338000,-500.0,9.699e-05,2]
[421962935,1778376338000,-500.0,9.699e-05,2]
[421962930,1778376338000,-1200.0,9.689e-05,2]
[421962931,1778376338000,-11450.0,9.69e-05,2]
[421962932,1778376338000,-425.39104999,9.691e-05,2]
[421962929,1778376338000,-156.41,9.64e-05,2]
[421962933,1778376338000,-334.0,9.697e-05,2]
[421962919,1778376338000,-250.0,9.143e-05,2]
[421962924,1778376338000,-200.0,9.26e-05,2]
[421962925,1778376338000,-334.0,9.331e-05,2]
[421962927,1778376338000,-334.0,9.514e-05,2]
[421962926,1778376338000,-334.0,9.423e-05,2]
[421962921,1778376338000,-250.0,9.224e-05,2]
[421962922,1778376338000,-163.16426004,9.224e-05,2]
[421962920,1778376338000,-1498.06195574,9.149e-05,2]
[421962918,1778376338000,-156.41,9.137e-05,2]
[421962923,1778376338000,-334.0,9.24e-05,2]
[421962928,1778376338000,-334.0,9.606e-05,2]
[421962939,1778376338000,-500.0,9.699e-05,2]
[421962934,1778376338000,-150.0,9.698e-05,2]
[421962940,1778376338000,-500.0,9.699e-05,2]
[421962941,1778376338000,-500.0,9.699e-05,2]
[421962961,1778376338000,-500.0,9.699e-05,2]
[421962960,1778376338000,-187.35173492,9.699e-05,2]
[421962958,1778376338000,-500.0,9.699e-05,2]
[421962955,1778376338000,-500.0,9.699e-05,2]
[421962956,1778376338000,-307.9993233,9.699e-05,2]
[421962957,1778376338000,-500.0,9.699e-05,2]
[421962954,1778376338000,-500.0,9.699e-05,2]
[421962953,1778376338000,-500.0,9.699e-05,2]
[421962950,1778376338000,-636.12817033,9.699e-05,2]
[421962959,1778376338000,-500.0,9.699e-05,2]
[421962951,1778376338000,-500.0,9.699e-05,2]
[421962952,1778376338000,-500.0,9.699e-05,2]
[421962943,1778376338000,-500.0,9.699e-05,2]
[421962944,1778376338000,-500.0,9.699e-05,2]
[421962945,1778376338000,-500.0,9.699e-05,2]
[421962942,1778376338000,-556.95176241,9.699e-05,2]
[421962947,1778376338000,-500.0,9.699e-05,2]
[421962948,1778376338000,-500.0,9.699e-05,2]
[421962949,1778376338000,-636.12817033,9.699e-05,2]
[421962946,1778376338000,-500.0,9.699e-05,2]
[421962978,1778376339000,-500.0,9.699e-05,2]
[421962971,1778376339000,-273.83345075,9.699e-05,2]
[421962976,1778376339000,-500.0,9.699e-05,2]
[421962975,1778376339000,-623.13248262,9.699e-05,2]
[421962974,1778376339000,-500.0,9.699e-05,2]
[421962972,1778376339000,-612.13425626,9.699e-05,2]
[421962970,1778376339000,-636.12817031,9.699e-05,2]
[421962964,1778376339000,-636.12817031,9.699e-05,2]
[421962969,1778376339000,-272.25634062,9.699e-05,2]
[421962967,1778376339000,-500.0,9.699e-05,2]
[421962966,1778376339000,-636.12817031,9.699e-05,2]
[421962965,1778376339000,-636.12817031,9.699e-05,2]
[421962963,1778376339000,-636.12817031,9.699e-05,2]
[421962962,1778376339000,-500.0,9.699e-05,2]
[421962977,1778376339000,-250.0,9.699e-05,2]
[421962968,1778376339000,-500.0,9.699e-05,2]
[421962979,1778376339000,-500.0,9.699e-05,2]
[421962973,1778376339000,-500.85575543,9.699e-05,2]
[421962981,1778376339000,-500.0,9.699e-05,2]
[421962998,1778376339000,-2764.47912278,9.7e-05,2]
[421962996,1778376339000,-500.0,9.699e-05,2]
[421962995,1778376339000,-500.0,9.699e-05,2]
[421962994,1778376339000,-500.0,9.699e-05,2]
[421962993,1778376339000,-500.0,9.699e-05,2]
[421962980,1778376339000,-500.0,9.699e-05,2]
[421962991,1778376339000,-500.0,9.699e-05,2]
[421962990,1778376339000,-500.0,9.699e-05,2]
[421962992,1778376339000,-500.0,9.699e-05,2]
[421962988,1778376339000,-500.0,9.699e-05,2]
[421962989,1778376339000,-500.0,9.699e-05,2]
[421962997,1778376339000,-500.0,9.699e-05,2]
[421962986,1778376339000,-500.0,9.699e-05,2]
[421962984,1778376339000,-500.0,9.699e-05,2]
[421962985,1778376339000,-500.0,9.699e-05,2]
[421962983,1778376339000,-500.0,9.699e-05,2]
[421962982,1778376339000,-500.0,9.699e-05,2]
[421962987,1778376339000,-500.0,9.699e-05,2]
[421962999,1778376350000,-464.95269628,9.7e-05,2]
[421963000,1778376362000,1000.0,0.00013699,15]
[421963001,1778376442000,-6846.56125606,9.63e-05,2]
[421963002,1778376490000,64.21,4.602e-05,2]
[421963003,1778376490000,579.66,4.602e-05,2]
[421963005,1778376490000,443.13403526,4.844e-05,2]
[421963004,1778376490000,200.73596474,4.844e-05,2]
[421963007,1778376490000,364.10853366,5.086e-05,2]
[421963008,1778376490000,643.87,5.328e-05,2]
[421963009,1778376490000,643.87,5.57e-05,2]
[421963006,1778376490000,279.76146634,5.086e-05,2]
[421963018,1778376491000,643.87,6.539e-05,2]
[421963017,1778376491000,176.62700527,6.297e-05,2]
[421963016,1778376491000,158.72,6.297e-05,2]
[421963015,1778376491000,157.66,6.297e-05,2]
[421963014,1778376491000,150.86299473,6.297e-05,2]
[421963013,1778376491000,1.13700527,6.055e-05,2]
[421963012,1778376491000,642.73299473,6.055e-05,2]
[421963011,1778376491000,80.16250687,5.813e-05,2]
[421963010,1778376491000,563.70749313,5.813e-05,2]
[421963019,1778376492000,643.87,6.781e-05,2]
[421963021,1778376492000,643.87,7.266e-05,2]
[421963022,1778376492000,643.87,7.508e-05,2]
[421963020,1778376492000,643.87,7.024e-05,2]
[421963025,1778376493000,643.87,8.234e-05,2]
[421963024,1778376493000,643.87,7.992e-05,2]
[421963023,1778376493000,643.87,7.75e-05,2]
[421963027,1778376558000,-150.0,8.561e-05,2]
[421963026,1778376558000,-643.87,8.477e-05,2]
[421963029,1778376558000,-643.87,8.719e-05,2]
[421963028,1778376558000,-150.0,8.646e-05,2]
[421963031,1778376558000,-150.0,8.815e-05,2]
[421963030,1778376558000,-150.0,8.73e-05,2]
[421963032,1778376558000,-150.0,8.9e-05,2]
[421963033,1778376558000,-643.87,8.961e-05,2]
[421963037,1778376558000,-500.0,9.159e-05,2]
[421963035,1778376558000,-150.0,9.069e-05,2]
[421963042,1778376558000,-187.85471482,9.629e-05,2]
[421963043,1778376558000,-61.0503792,9.629e-05,2]
[421963041,1778376558000,-500.0,9.629e-05,2]
[421963034,1778376558000,-150.0,8.985e-05,2]
[421963039,1778376558000,-300.0,9.628e-05,2]
[421963038,1778376558000,-643.87,9.203e-05,2]
[421963036,1778376558000,-290.0,9.154e-05,2]
[421963040,1778376558000,-248.53333398,9.629e-05,2]
[421963051,1778376559000,-500.0,9.629e-05,2]
[421963044,1778376559000,-485.6781872,9.629e-05,2]
[421963047,1778376559000,-500.0,9.629e-05,2]
[421963046,1778376559000,-500.0,9.629e-05,2]
[421963045,1778376559000,-500.0,9.629e-05,2]
[421963048,1778376559000,-500.0,9.629e-05,2]
[421963050,1778376559000,-500.0,9.629e-05,2]
[421963049,1778376559000,-500.0,9.629e-05,2]
[421963053,1778376559000,-500.0,9.629e-05,2]
[421963054,1778376559000,-500.0,9.629e-05,2]
[421963055,1778376559000,-500.0,9.629e-05,2]
[421963056,1778376559000,-556.40243455,9.629e-05,2]
[421963057,1778376559000,-500.0,9.629e-05,2]
[421963058,1778376559000,-500.0,9.629e-05,2]
[421963060,1778376559000,-500.0,9.629e-05,2]
[421963061,1778376559000,-500.0,9.629e-05,2]
[421963059,1778376559000,-500.0,9.629e-05,2]
[421963062,1778376559000,-500.0,9.629e-05,2]
[421963063,1778376559000,-259959.86957825,9.63e-05,2]
[421963052,1778376559000,-500.0,9.629e-05,2]
[421963064,1778376565000,-39230.37804,9.63e-05,2]
[421963065,1778376618000,662.35,0.00027397,120]
[421963074,1778376631000,-585.56582339,9.256e-05,2]
[421963073,1778376631000,-300.0,9.256e-05,2]
[421963077,1778376631000,-3739.67435107,9.257e-05,2]
[421963075,1778376631000,-367.55852767,9.256e-05,2]
[421963081,1778376631000,-2368.72,9.599e-05,2]
[421963080,1778376631000,-24405.44220798,9.599e-05,2]
[421963078,1778376631000,-7439.49564893,9.257e-05,2]
[421963076,1778376631000,-246.87564894,9.256e-05,2]
[421963082,1778376631000,-1289.0,9.599e-05,2]
[421963079,1778376631000,-542840.27671017,9.599e-05,2]
[421963083,1778376632000,-1971.63286512,9.599e-05,2]
[421963147,1778376638000,-501.20580732,9.673e-05,2]
[421963150,1778376638000,-263.0987231,9.7e-05,2]
[421963146,1778376638000,-500.0,9.673e-05,2]
[421963155,1778376638000,-500.0,9.773e-05,2]
[421963165,1778376638000,-1301.25,0.00010027,2]
[421963168,1778376638000,-227.0,0.00010182,2]
[421963166,1778376638000,-156.41,0.00010143,2]
[421963156,1778376638000,-153.98892859,9.773e-05,2]
[421963160,1778376638000,-188.81407806,0.0001,2]
[421963157,1778376638000,-3903.08776822,9.781e-05,2]
[421963158,1778376638000,-153.98892859,9.878e-05,2]
[421963154,1778376638000,-577.10389741,9.773e-05,2]
[421963159,1778376638000,-239.71,9.921e-05,2]
[421963163,1778376638000,-597.06521701,0.0001,2]
[421963162,1778376638000,-188.81407806,0.0001,2]
[421963164,1778376638000,-442.39252064,0.0001,2]
[421963169,1778376638000,-1680.0,0.00010182,2]
[421963172,1778376638000,-1000.0,0.00010221,2]
[421963181,1778376638000,-1000.0,0.00010221,2]
[421963148,1778376638000,-237544.53358094,9.7e-05,2]
[421963161,1778376638000,-188.81407806,0.0001,2]
[421963144,1778376638000,-500.0,9.673e-05,2]
[421963129,1778376638000,-237.25597513,9.598e-05,2]
[421963142,1778376638000,-6018.349033,9.63e-05,2]
[421963183,1778376638000,-1301.25,0.00010278,2]
[421963127,1778376638000,-500.0,9.598e-05,2]
[421963128,1778376638000,-474.32031848,9.598e-05,2]
[421963126,1778376638000,-500.0,9.598e-05,2]
[421963130,1778376638000,-500.0,9.598e-05,2]
[421963131,1778376638000,-500.0,9.598e-05,2]
[421963133,1778376638000,-500.0,9.598e-05,2]
[421963132,1778376638000,-500.0,9.598e-05,2]
[421963134,1778376638000,-500.0,9.598e-05,2]
[421963139,1778376638000,-263.50783151,9.629e-05,2]
[421963140,1778376638000,-1207.76532497,9.629e-05,2]
[421963136,1778376638000,-611.15529054,9.598e-05,2]
[421963141,1778376638000,-635116.18640949,9.63e-05,2]
[421963135,1778376638000,-500.0,9.598e-05,2]
[421963138,1778376638000,-150.0,9.629e-05,2]
[421963137,1778376638000,-1927124.92821673,9.599e-05,2]
[421963143,1778376638000,-500.0,9.673e-05,2]
[421963151,1778376638000,-1000.0,9.716e-05,2]
[421963152,1778376638000,-160.77743921,9.751e-05,2]
[421963153,1778376638000,-973.41,9.758e-05,2]
[421963149,1778376638000,-509.0,9.7e-05,2]
[421963145,1778376638000,-500.0,9.673e-05,2]
[421963185,1778376638000,-2000.0,0.00010293,2]
[421963261,1778376638000,-500.0,0.00010595,2]
[421963179,1778376638000,-1000.0,0.00010221,2]
[421963232,1778376638000,-500.0,0.00010595,2]
[421963225,1778376638000,-500.0,0.00010595,2]
[421963240,1778376638000,-500.0,0.00010595,2]
[421963234,1778376638000,-500.0,0.00010595,2]
[421963259,1778376638000,-500.0,0.00010595,2]
[421963246,1778376638000,-500.0,0.00010595,2]
[421963257,1778376638000,-500.0,0.00010595,2]
[421963263,1778376638000,-500.0,0.00010595,2]
[421963275,1778376638000,-500.0,0.00010595,2]
[421963248,1778376638000,-456.80933954,0.00010595,2]
[421963250,1778376638000,-500.0,0.00010595,2]
[421963253,1778376638000,-500.0,0.00010595,2]
[421963252,1778376638000,-500.0,0.00010595,2]
[421963267,1778376638000,-219.19126393,0.00010595,2]